fUSD/lending_fUSD_20251103
["ID","MTS","AMOUNT","RATE_DAILY","PERIOD"]
[392947030,1762164708012,500.0,0.00030136,120]
[392947031,1762164709835,-3829.01289895,0.0001438,2]
[392947033,1762164712904,-10000.01,0.0001438,2]
[392947034,1762164713095,-10000.01,0.0001438,2]
[392947035,1762164713237,-10000.01,0.0001438,2]
[392947037,1762164713371,-10000.01,0.0001438,2]
[392947038,1762164713509,-10000.01,0.0001438,2]
[392947039,1762164713620,-10000.01,0.0001438,2]
[392947040,1762164713755,-10000.01,0.0001438,2]
[392947041,1762164713872,-10000.01,0.0001438,2]
[392947042,1762164713996,-10000.01,0.0001438,2]
[392947044,1762164715805,500.0,0.00030136,120]
[392947045,1762164716017,-10000.01,0.0001438,2]
[392947046,1762164719551,500.0,0.00030136,120]
[392947047,1762164724780,500.0,0.00030136,120]
[392947048,1762164730857,500.0,0.00030136,120]
[392947049,1762164731622,500.0,0.00030136,120]
[392947050,1762164735946,-300.0,0.00014379,2]
[392947051,1762164735969,-115.60324495,0.00014379,2]
[392947052,1762164738394,524.06,0.00030136,120]
[392947053,1762164739215,500.0,0.00030136,120]
[392947054,1762164740631,-34.39675505,0.00014379,2]
[392947055,1762164740654,-191.40040427,0.0001438,2]
[392947056,1762164742757,-208.06507426,0.0001438,2]
[392947057,1762164744330,-160.13207637,0.0001438,2]
[392947058,1762164745833,174.23062065,0.00014312,2]
[392947059,1762164747186,500.0,0.00030136,120]
[392947060,1762164748527,282.35715074,0.00030136,120]
[392947061,1762164748580,-157.47395599,0.0001438,2]
[392947063,1762164749622,500.0,0.00030136,120]
[392947064,1762164750025,253.98,6.833e-05,2]
[392947065,1762164750057,-500.19530443,0.0001438,2]
[392947066,1762164750226,253.98,7.193e-05,2]
[392947067,1762164750430,253.98,7.553e-05,2]
[392947068,1762164750638,415.603245,0.00014308,2]
[392947069,1762164750674,253.98,7.912e-05,2]
[392947070,1762164750835,253.98,8.272e-05,2]
[392947071,1762164751025,253.98,8.632e-05,2]
[392947072,1762164751233,253.98,8.991e-05,2]
[392947073,1762164751441,253.98,9.351e-05,2]
[392947074,1762164751664,253.98,9.711e-05,2]
[392947075,1762164751851,253.98,0.0001007,2]
[392947076,1762164751976,-317.21109613,0.0001438,2]
[392947077,1762164752052,253.98,0.0001043,2]
[392947078,1762164752295,253.98,0.00010789,2]
[392947079,1762164752509,253.98,0.00011149,2]
[392947080,1762164752714,253.98,0.00011509,2]
[392947081,1762164752908,253.98,0.00011868,2]
[392947082,1762164753096,253.98,0.00012228,2]
[392947083,1762164753298,253.98,0.00012588,2]
[392947084,1762164753695,253.98,0.00012947,2]
[392947085,1762164753902,-274.1253335,0.00014379,2]
[392947086,1762164754091,253.98,0.00013307,2]
[392947087,1762164754135,253.98,0.00013667,2]
[392947088,1762164755198,-125.16215866,0.00014379,2]
[392947089,1762164755220,-42.84711143,0.00014379,2]
[392947090,1762164756010,500.0,0.00030136,120]
[392947091,1762164757464,-153.88263072,0.00014379,2]
[392947092,1762164757489,-92.59700023,0.00014379,2]
[392947093,1762164757740,500.0,0.00030136,120]
[392947094,1762164758349,500.0,0.00030136,120]
[392947095,1762164759706,-161.55758847,0.00014379,2]
[392947096,1762164759732,-88.44241153,0.00014379,2]
[392947097,1762164761385,-194.9694206,0.00014379,2]
[392947098,1762164761799,500.0,0.00030136,120]
[392947099,1762164762744,-217.95955624,0.00014379,2]
[392947100,1762164762765,-82.04044376,0.00014379,2]
[392947101,1762164764840,-172.47286321,0.00014379,2]
[392947102,1762164766969,-413.96019378,0.00014379,2]
[392947103,1762164769836,-199.22908831,0.00014379,2]
[392947104,1762164772665,-332.29741094,0.00014379,2]
[392947105,1762164772687,-12.44584747,0.0001438,2]
[392947106,1762164775645,-261.01570103,0.0001438,2]
[392947107,1762164776980,-232.98771708,0.0001438,2]
[392947108,1762164778070,500.0,0.00030136,120]
[392947109,1762164780518,-196.64267996,0.0001438,2]
[392947110,1762164782964,500.0,0.00030136,120]
[392947111,1762164783517,500.0,0.00030136,120]
[392947112,1762164784464,-259.52036905,0.00014379,2]
[392947113,1762164787262,-152.29454223,0.00014373,2]
[392947114,1762164789812,500.0,0.00030136,120]
[392947115,1762164790020,-289.52428886,0.00014373,2]
[392947116,1762164790980,500.0,0.00030136,120]
[392947117,1762164791563,-61.24750451,0.00014373,2]
[392947118,1762164791587,-157.42058405,0.00014376,2]
[392947119,1762164792687,500.0,0.00030136,120]
[392947120,1762164794167,500.0,0.00030136,120]
[392947121,1762164797910,3691.0061,0.0001428,2]
[392947122,1762164798691,-92.57941595,0.00014376,2]
[392947123,1762164798713,-40.47963095,0.00014379,2]
[392947124,1762164798735,-194.46808989,0.0001438,2]
[392947125,1762164799148,639.57003435,0.00013946,2]
[392947126,1762164799169,2111.42996565,0.00013946,2]
[392947127,1762164799457,500.0,0.00030136,120]
[392947128,1762164801848,536.97975561,0.00030136,120]
[392947129,1762164801876,-209.07560919,0.0001438,2]
[392947130,1762164803415,-203.28221121,0.0001438,2]
[392947131,1762164803630,500.0,0.00030136,120]
[392947132,1762164806141,-310.2397299,0.0001438,2]
[392947133,1762164807428,355.38361695,0.00030136,120]
[392947134,1762164808039,500.0,0.00030136,120]
[392947135,1762164808235,-201.0,0.0001438,2]
[392947136,1762164808708,852.37,0.00030136,120]
[392947137,1762164810467,-333.38835847,0.0001438,2]
[392947138,1762164811992,-246.1582886,0.0001438,2]
[392947139,1762164813562,-158.90882822,0.0001438,2]
[392947140,1762164815088,-319.79603012,0.0001438,2]
[392947141,1762164816421,500.0,0.00030136,120]
[392947142,1762164817707,-227.12104671,0.0001438,2]
[392947143,1762164820096,-250.0,0.0001438,2]
[392947144,1762164821538,197.76535286,0.00030136,120]
[392947145,1762164822754,-282.63484996,0.0001438,2]
[392947146,1762164828100,7888.58003435,0.0001397,2]
[392947147,1762164828122,648.08996565,0.0001397,2]
[392947148,1762164828779,-175.69608443,0.0001438,2]
[392947149,1762164830938,-290.44282029,0.0001438,2]
[392947150,1762164832491,-199.40832095,0.0001438,2]
[392947151,1762164834144,-961.56673312,0.0001438,2]
[392947152,1762164836261,-279.81714642,0.0001438,2]
[392947153,1762164836522,600.0,0.00013699,2]
[392947154,1762164837167,600.0,0.00013699,2]
[392947155,1762164837444,600.0,0.00013699,2]
[392947156,1762164837830,600.0,0.00013699,2]
[392947157,1762164837857,-167.77082516,0.0001438,2]
[392947158,1762164837962,600.0,0.00013699,2]
[392947159,1762164838208,600.0,0.00013699,2]
[392947160,1762164838480,600.0,0.00013699,2]
[392947161,1762164838754,600.0,0.00013699,2]
[392947162,1762164839290,-500.0,0.0001438,2]
[392947163,1762164839535,500.0,0.00030136,120]
[392947164,1762164852699,500.0,0.00030136,120]
[392947165,1762164855445,-300.0,0.0001438,2]
[392947166,1762164858440,429.59591277,0.00030136,120]
[392947167,1762164859429,-206.54676447,0.0001438,2]
[392947168,1762164861051,-176.49702007,0.0001438,2]
[392947169,1762164862598,530.33,0.00030136,120]
[392947170,1762164864961,-341.47,0.0001438,2]
[392947171,1762164867102,500.0,0.00030136,120]
[392947172,1762164868148,-156.82702104,0.0001438,2]
[392947173,1762164869655,-390.50040537,0.0001438,2]
[392947174,1762164876734,508.23,0.00030136,120]
[392947175,1762164885387,-153.54468591,0.0001438,2]
[392947176,1762164888016,-213.47851714,0.0001438,2]
[392947177,1762164892036,-325.90407458,0.0001438,2]
[392947178,1762164894463,500.0,0.00030136,120]
[392947179,1762164895755,-370.48179252,0.0001438,2]
[392947180,1762164897918,-300.0,0.0001438,2]
[392947181,1762164899553,-693.7844184,0.0001438,2]
[392947182,1762164902907,500.0,0.00030136,120]
[392947183,1762164903298,-229.1797545,0.00014379,2]
[392947184,1762164904819,500.0,0.00030136,120]
[392947185,1762164908477,-70.8202455,0.00014379,2]
[392947186,1762164908499,-167.34996442,0.00014379,2]
[392947187,1762164910621,-132.65003558,0.00014379,2]
[392947188,1762164910643,-31.66315538,0.00014379,2]
[392947189,1762164912877,-268.33684462,0.00014379,2]
[392947190,1762164912899,-71.58610894,0.00014379,2]
[392947191,1762164917765,-78.41389106,0.00014379,2]
[392947192,1762164917788,-1200.0,0.00014379,2]
[392947193,1762164917811,-984.38333429,0.0001438,2]
[392947194,1762164919308,-203.01,0.0001438,2]
[392947195,1762164919825,500.0,0.00030136,120]
[392947196,1762164919918,500.0,0.00030136,120]
[392947197,1762164920875,-217.85136862,0.0001438,2]
[392947198,1762164921080,500.0,0.00030136,120]
[392947199,1762164925237,500.0,0.00030136,120]
[392947200,1762164925620,-249.7229513,0.0001438,2]
[392947201,1762164926373,546.14,0.00030136,120]
[392947202,1762164928067,-300.0,0.0001438,2]
[392947203,1762164934009,523.38,0.00030136,120]
[392947204,1762164939852,500.0,0.00030136,120]
[392947205,1762164943297,500.0,0.00030136,120]
[392947206,1762164945502,-303.41188575,0.0001438,2]
[392947207,1762164947964,530.45268759,0.00030136,120]
[392947208,1762164948112,234.9267337,0.00030136,120]
[392947209,1762164948637,500.0,0.00030136,120]
[392947210,1762164950735,-227.90509178,0.0001438,2]
[392947211,1762164951364,500.0,0.00030136,120]
[392947212,1762164952937,-357.28298135,0.0001438,2]
[392947213,1762164955162,-409.92909857,0.0001438,2]
[392947214,1762164957009,500.0,0.00030136,120]
[392947215,1762164957310,-300.0,0.0001438,2]
[392947216,1762164960016,-181.827646,0.0001438,2]
[392947217,1762164961252,174.23062065,0.00014312,2]
[392947218,1762164961728,-239.84119403,0.0001438,2]
[392947219,1762164963510,-554.81063941,0.0001438,2]
[392947220,1762164966235,-207.42033652,0.0001438,2]
[392947221,1762164966773,4377.6894137,0.0001428,2]
[392947222,1762164966796,1885.0333863,0.0001428,2]
[392947223,1762164968690,-338.50252326,0.0001438,2]
[392947224,1762164971864,-184.51152619,0.0001438,2]
[392947225,1762164973931,655.65,0.00030136,120]
[392947226,1762164974517,-266.89634585,0.0001438,2]
[392947227,1762164975895,500.0,0.00030136,120]
[392947228,1762164978306,500.0,0.00030136,120]
[392947229,1762164986581,500.0,0.00030136,120]
[392947230,1762164990399,-246.0,0.0001438,2]
[392947231,1762164990760,500.0,0.00030136,120]
[392947232,1762164991485,500.0,0.00030136,120]
[392947233,1762164992720,500.0,0.00030136,120]
[392947234,1762164993553,-224.39491914,0.0001438,2]
[392947243,1762164995513,500.0,0.00030136,120]
[392947244,1762164995901,-166.66,0.0001438,2]
[392947245,1762164997508,-206.67756474,0.0001438,2]
[392947246,1762164997864,500.0,0.00030136,120]
[392947247,1762164998742,500.0,0.00030136,120]
[392947248,1762165000844,-237.20277449,0.0001438,2]
[392947249,1762165001647,500.0,0.00030136,120]
[392947250,1762165003104,-449.44471843,0.0001438,2]
[392947251,1762165013183,500.0,0.00030136,120]
[392947252,1762165018207,154.49627683,0.00030136,120]
[392947253,1762165020453,-300.0,0.0001438,2]
[392947254,1762165024315,-300.0,0.00014379,2]
[392947255,1762165024339,-600.01764345,0.0001438,2]
[392947256,1762165025633,650.85,0.00030136,120]
[392947257,1762165026187,-263.91345655,0.0001438,2]
[392947258,1762165030527,-252.40712472,0.0001438,2]
[392947259,1762165032645,-165.17624386,0.0001438,2]
[392947260,1762165033169,387.6228643,0.00030136,120]
[392947261,1762165033248,500.0,0.00030136,120]
[392947262,1762165039721,284.2851,0.0001428,2]
[392947263,1762165041048,-157.0578332,0.00014371,2]
[392947264,1762165045413,244.80252221,0.00030136,120]
[392947265,1762165045586,-91.65748501,0.00014371,2]
[392947266,1762165045609,-72.05652455,0.0001438,2]
[392947267,1762165047129,-300.0,0.0001438,2]
[392947268,1762165055906,500.0,0.00030136,120]
[392947269,1762165058490,168.0,0.00014334,2]
[392947270,1762165059569,151.02417455,0.00014296,2]
[392947271,1762165060174,291.17865105,0.00030136,120]
[392947272,1762165062533,500.0,0.00030136,120]
[392947273,1762165062857,500.0,0.00030136,120]
[392947274,1762165064358,500.0,0.00030136,120]
[392947275,1762165066272,500.0,0.00030136,120]
[392947276,1762165067518,500.0,0.00030136,120]
[392947277,1762165076086,500.0,0.00030136,120]
[392947278,1762165078629,500.0,0.00030136,120]
[392947279,1762165080956,500.0,0.00030136,120]
[392947280,1762165086604,500.0,0.00030136,120]
[392947281,1762165087225,500.0,0.00030136,120]
[392947282,1762165090223,500.0,0.00030136,120]
[392947283,1762165092084,242.6841,0.0001428,2]
[392947284,1762165105673,582.86209312,0.00030136,120]
[392947285,1762165111190,500.0,0.00030136,120]
[392947286,1762165114667,500.0,0.00030136,120]
[392947287,1762165117689,500.0,0.00030136,120]
[392947288,1762165126514,576.51053569,0.00030136,120]
[392947289,1762165134325,500.0,0.00030136,120]
[392947290,1762165140540,500.0,0.00030136,120]
[392947291,1762165142872,500.0,0.00030136,120]
[392947292,1762165147206,-1200.0,0.00014379,2]
[392947293,1762165147235,-300.0,0.00014379,2]
[392947294,1762165147264,-150.0,0.00014379,2]
[392947295,1762165147293,-300.0,0.00014379,2]
[392947296,1762165147955,-3368.98323915,0.0001438,2]
[392947297,1762165148040,-10000.01,0.0001438,2]
[392947298,1762165148070,-10000.01,0.0001438,2]
[392947299,1762165148152,-10000.01,0.0001438,2]
[392947300,1762165148329,-10000.01,0.0001438,2]
[392947301,1762165148454,-10000.01,0.0001438,2]
[392947302,1762165153157,500.0,0.00030136,120]
[392947303,1762165153455,-10000.01,0.0001438,2]
[392947304,1762165153575,-10000.01,0.0001438,2]
[392947305,1762165153687,-10000.01,0.0001438,2]
[392947306,1762165153791,-10000.01,0.0001438,2]
[392947307,1762165156354,600.0,0.00013699,2]
[392947308,1762165156598,600.0,0.00013699,2]
[392947309,1762165156962,600.0,0.00013699,2]
[392947310,1762165157227,600.0,0.00013699,2]
[392947311,1762165157361,-10000.01,0.0001438,2]
[392947312,1762165157473,-10000.01,0.0001438,2]
[392947313,1762165157509,600.0,0.00013699,2]
[392947314,1762165157584,-10000.01,0.0001438,2]
[392947315,1762165157742,600.0,0.00013699,2]
[392947316,1762165157756,-10000.01,0.0001438,2]
[392947317,1762165158009,600.0,0.00013699,2]
[392947318,1762165158034,-10000.01,0.0001438,2]
[392947319,1762165158260,600.0,0.00013699,2]
[392947320,1762165161878,500.0,0.00030136,120]
[392947321,1762165177768,500.0,0.00030136,120]
[392947322,1762165208912,500.0,0.00030136,120]
[392947323,1762165209673,500.0,0.00030136,120]
[392947324,1762165211060,500.0,0.00030136,120]
[392947325,1762165215980,500.0,0.00030136,120]
[392947326,1762165218309,525.62188835,0.00030136,120]
[392947327,1762165218621,500.0,0.00030136,120]
[392947328,1762165220212,609.36376165,0.00030136,120]
[392947329,1762165220789,533.75,0.00030136,120]
[392947330,1762165225579,500.0,0.00030136,120]
[392947331,1762165230798,500.0,0.00030136,120]
[392947332,1762165234278,500.0,0.00030136,120]
[392947333,1762165236811,500.0,0.00030136,120]
[392947334,1762165241409,500.0,0.00030136,120]
[392947335,1762165242418,500.0,0.00030136,120]
[392947336,1762165243325,500.0,0.00030136,120]
[392947337,1762165249592,500.0,0.00030136,120]
[392947338,1762165251823,500.0,0.00030136,120]
[392947339,1762165251924,500.0,0.00030136,120]
[392947340,1762165254710,500.0,0.00030136,120]
[392947341,1762165255158,200.0,0.00013667,2]
[392947342,1762165262702,500.0,0.00030136,120]
[392947343,1762165265845,500.0,0.00030136,120]
[392947344,1762165268348,500.0,0.00030136,120]
[392947345,1762165269047,186.35,0.00011063,2]
[392947346,1762165272890,264.0,0.00014117,2]
[392947347,1762165283448,523.11,0.00030136,120]
[392947348,1762165288092,593.89,0.00030136,120]
[392947349,1762165291235,500.0,0.00030136,120]
[392947350,1762165292880,500.0,0.00030136,120]
[392947351,1762165310472,500.0,0.00030136,120]
[392947352,1762165322875,292.98990241,0.00030136,120]
[392947353,1762165324804,500.0,0.00030136,120]
[392947354,1762165325559,500.0,0.00030136,120]
[392947355,1762165334447,500.0,0.00030136,120]
[392947356,1762165335586,500.0,0.00030136,120]
[392947357,1762165338534,-300.0,0.00014379,2]
[392947358,1762165338562,-1200.0,0.00014379,2]
[392947359,1762165338590,-150.0,0.00014379,2]
[392947360,1762165338618,-300.0,0.00014379,2]
[392947361,1762165338645,-300.0,0.0001438,2]
[392947362,1762165338791,-4849.66,0.0001438,2]
[392947363,1762165338814,-10000.01,0.0001438,2]
[392947364,1762165338932,-10000.01,0.0001438,2]
[392947365,1762165339046,-10000.01,0.0001438,2]
[392947366,1762165339154,-10000.01,0.0001438,2]
[392947367,1762165339276,-10000.01,0.0001438,2]
[392947368,1762165339383,-10000.01,0.0001438,2]
[392947369,1762165339488,-10000.01,0.0001438,2]
[392947370,1762165339621,-10000.01,0.0001438,2]
[392947371,1762165339765,-10000.01,0.0001438,2]
[392947372,1762165343745,500.0,0.00030136,120]
[392947373,1762165358351,185.97,0.00013931,2]
[392947374,1762165362267,500.0,0.00030136,120]
[392947375,1762165363904,500.0,0.00030136,120]
[392947376,1762165364936,500.0,0.00030136,120]
[392947377,1762165370310,500.0,0.00030136,120]
[392947378,1762165371866,500.0,0.00030136,120]
[392947379,1762165374395,150.0,0.00013796,2]
[392947380,1762165375103,500.0,0.00030136,120]
[392947381,1762165375570,921.247,0.00030136,120]
[392947382,1762165375876,-247.09124972,0.00014183,2]
[392947383,1762165377208,500.0,0.00030136,120]
[392947384,1762165377420,500.0,0.00030136,120]
[392947385,1762165377743,515.9,0.00030136,120]
[392947386,1762165377890,500.0,0.00030136,120]
[392947387,1762165379507,-177.72900927,0.00014183,2]
[392947388,1762165379635,500.0,0.00030136,120]
[392947389,1762165381331,576.25,0.00030136,120]
[392947390,1762165385511,500.0,0.00030136,120]
[392947391,1762165386444,500.0,0.00030136,120]
[392947392,1762165387526,547.16,0.00030136,120]
[392947393,1762165390729,500.0,0.00030136,120]
[392947394,1762165390822,464.73495524,0.00030136,120]
[392947395,1762165393684,500.0,0.00030136,120]
[392947396,1762165394104,500.0,0.00030136,120]
[392947397,1762165395172,500.0,0.00030136,120]
[392947398,1762165395272,500.0,0.00030136,120]
[392947399,1762165395399,-150.30189,0.00014112,2]
[392947400,1762165395421,-114.43918672,0.00014182,2]
[392947401,1762165398027,500.0,0.00030136,120]
[392947402,1762165398302,-185.56081328,0.00014182,2]
[392947403,1762165398324,-9.43918672,0.00014183,2]
[392947404,1762165399658,-535.242024,0.00014183,2]
[392947406,1762165400422,500.0,0.00030136,120]
[392947407,1762165401209,-159.85303996,0.00014183,2]
[392947408,1762165401377,500.0,0.00030136,120]
[392947409,1762165403453,-672.62472113,0.00014183,2]
[392947410,1762165404152,500.0,0.00030136,120]
[392947411,1762165404230,500.0,0.00030136,120]
[392947412,1762165406135,-188.34524643,0.00014183,2]
[392947413,1762165408164,-306.65475357,0.00014183,2]
[392947414,1762165414212,500.0,0.00030136,120]
[392947415,1762165416783,500.0,0.00030136,120]
[392947416,1762165420134,500.0,0.00030136,120]
[392947417,1762165425395,-319.40133199,0.00014183,2]
[392947418,1762165428408,-271.48907228,0.00014183,2]
[392947419,1762165431210,-522.70933448,0.00014183,2]
[392947420,1762165432781,-188.54130858,0.00014183,2]
[392947421,1762165436475,-349.35957784,0.00014183,2]
[392947422,1762165436606,500.0,0.00030136,120]
[392947423,1762165438757,-160.20263587,0.00014183,2]
[392947424,1762165440198,500.0,0.00030136,120]
[392947425,1762165443095,500.0,0.00030136,120]
[392947426,1762165443981,206.8994818,0.00030136,120]
[392947427,1762165444590,500.0,0.00030136,120]
[392947428,1762165448424,500.0,0.00030136,120]
[392947429,1762165449322,368.13048944,0.00030136,120]
[392947430,1762165455805,-300.0,0.00014183,2]
[392947431,1762165455955,491.935165,0.00030136,120]
[392947432,1762165457342,-411.97479195,0.00014183,2]
[392947433,1762165459683,-180.45480722,0.00014183,2]
[392947434,1762165462007,500.0,0.00030136,120]
[392947435,1762165462862,-193.3251,0.00014012,2]
[392947436,1762165462884,-87.1741543,0.00014183,2]
[392947437,1762165466170,500.0,0.00030136,120]
[392947438,1762165468057,-195.0,0.00014183,2]
[392947439,1762165469630,-298.80797233,0.00014183,2]
[392947440,1762165472605,500.0,0.00030136,120]
[392947441,1762165472707,500.0,0.00030136,120]
[392947442,1762165476051,500.0,0.00030136,120]
[392947443,1762165482540,500.0,0.00030136,120]
[392947444,1762165485439,-343.03202729,0.00014183,2]
[392947445,1762165487129,-195.0,0.00014183,2]
[392947446,1762165487712,500.0,0.00030136,120]
[392947447,1762165488002,500.0,0.00030136,120]
[392947448,1762165488248,500.0,0.00030136,120]
[392947449,1762165488897,600.0,0.00013699,2]
[392947450,1762165489191,600.0,0.00013699,2]
[392947451,1762165489273,-300.77396753,0.00014183,2]
[392947452,1762165489771,600.0,0.00013699,2]
[392947453,1762165490040,600.0,0.00013699,2]
[392947454,1762165490299,600.0,0.00013699,2]
[392947455,1762165490923,600.0,0.00013699,2]
[392947456,1762165491184,600.0,0.00013699,2]
[392947457,1762165491438,-250.4602882,0.00014183,2]
[392947458,1762165491475,600.0,0.00013699,2]
[392947459,1762165493555,-378.60623418,0.00014183,2]
[392947460,1762165495235,-166.61164153,0.00014183,2]
[392947461,1762165496069,265.86637253,0.00030136,120]
[392947462,1762165497490,-193.3250575,0.00014183,2]
[392947463,1762165500381,500.0,0.00030136,120]
[392947464,1762165506256,500.0,0.00030136,120]
[392947465,1762165508192,150.0,0.00013488,2]
[392947466,1762165508294,150.0,0.00013488,2]
[392947467,1762165508565,150.0,0.00013488,2]
[392947468,1762165508612,150.0,0.00013987,2]
[392947469,1762165513212,-180.27972521,0.00014183,2]
[392947471,1762165514581,-383.67767346,0.00014183,2]
[392947472,1762165515020,150.0,0.00013488,2]
[392947473,1762165515159,150.0,0.00013488,2]
[392947474,1762165515343,150.0,0.00013488,2]
[392947475,1762165515396,150.0,0.00013488,2]
[392947476,1762165517256,500.0,0.00030136,120]
[392947477,1762165518557,169.67742824,0.00013488,2]
[392947478,1762165521549,189.35451242,0.00014,2]
[392947479,1762165521989,150.0,0.00013488,2]
[392947480,1762165522026,49.12805934,0.00013488,2]
[392947481,1762165522054,193.56463674,0.00013488,2]
[392947482,1762165522124,150.0,0.00013488,2]
[392947483,1762165522280,150.0,0.00013488,2]
[392947484,1762165523539,500.0,0.00030136,120]
[392947485,1762165526589,638.64,0.00030136,120]
[392947486,1762165529157,150.0,0.00013488,2]
[392947487,1762165529731,150.0,0.00013488,2]
[392947488,1762165529803,150.0,0.00013488,2]
[392947489,1762165530403,-150.0,0.00013702,2]
[392947490,1762165530426,-152.46887359,0.0001375,2]
[392947492,1762165531246,500.0,0.00030136,120]
[392947493,1762165531577,500.0,0.00030136,120]
[392947494,1762165533232,500.0,0.00030136,120]
[392947495,1762165538421,500.0,0.00030136,120]
[392947496,1762165544079,500.0,0.00030136,120]
[392947497,1762165545041,500.0,0.00030136,120]
[392947498,1762165546056,500.0,0.00030136,120]
[392947499,1762165549418,628.33,0.00030136,120]
[392947500,1762165551258,500.0,0.00030136,120]
[392947501,1762165560470,-135.56112641,0.0001375,2]
[392947502,1762165560492,-150.0,0.00013916,2]
[392947503,1762165560514,-150.0,0.00013987,2]
[392947504,1762165560534,-101.77247408,0.0001399,2]
[392947505,1762165562341,500.0,0.00030136,120]
[392947506,1762165563675,300.0,0.00030136,120]
[392947507,1762165564524,-300.0,0.00013989,2]
[392947508,1762165564562,-9400.01,0.0001399,2]
[392947509,1762165564631,-441.2205273,0.0001399,2]
[392947510,1762165564736,-10000.01,0.0001399,2]
[392947511,1762165564852,-1721.49248812,0.0001399,2]
[392947512,1762165564882,-150.0,0.0001413,2]
[392947513,1762165564913,-1518.67594163,0.00014183,2]
[392947514,1762165564966,-3219.6731405,0.00014183,2]
[392947515,1762165565000,-250.0,0.00014186,2]
[392947516,1762165565028,-166.66,0.0001419,2]
[392947517,1762165565057,-150.0,0.00014237,2]
[392947518,1762165565084,-150.0,0.00014237,2]
[392947519,1762165565114,-1435.34960937,0.00014278,2]
[392947520,1762165565143,-421.77318982,0.00014279,2]
[392947521,1762165565171,-421.7731898,0.00014281,2]
[392947522,1762165565199,-421.7731898,0.00014282,2]
[392947523,1762165565225,-219.58466028,0.00014295,2]
[392947524,1762165565252,-150.0,0.00014344,2]
[392947525,1762165565282,-990.83271253,0.00014347,2]
[392947526,1762165565363,-444.5168968,0.00014347,2]
[392947527,1762165565544,-444.5168968,0.00014366,2]
[392947528,1762165565558,-9110.9762064,0.00014366,2]
[392947529,1762165565578,-10000.01,0.00014366,2]
[392947530,1762165565602,-10000.01,0.00014366,2]
[392947531,1762165565619,-10000.01,0.00014366,2]
[392947532,1762165565692,-10000.01,0.00014366,2]
[392947533,1762165568342,-10000.01,0.00014366,2]
[392947534,1762165568504,-10000.01,0.00014366,2]
[392947535,1762165569785,500.0,0.00030136,120]
[392947536,1762165570519,500.0,0.00030136,120]
[392947537,1762165575963,500.0,0.00030136,120]
[392947538,1762165577104,198.76259481,0.00030136,120]
[392947539,1762165578931,500.0,0.00030136,120]
[392947540,1762165584986,500.0,0.00030136,120]
[392947541,1762165587752,500.0,0.00030136,120]
[392947542,1762165587990,500.0,0.00030136,120]
[392947543,1762165589319,500.0,0.00030136,120]
[392947544,1762165595453,500.0,0.00030136,120]